bitfinex-derivatives/quotes_BTCF0:USTF0_20250630
["timestamp","ask_amount","ask_price","bid_price","bid_amount"]
[1751297341851,0.0644,107150.0,107140.0,1.6543055]
[1751297342052,0.2510081,107150.0,107140.0,0.9508255]
[1751297342252,0.66971904,107150.0,107140.0,0.5474255]
[1751297342549,0.1866256,107140.0,107130.0,0.37792981]
[1751297342747,0.96873654,107140.0,107130.0,0.37792981]
[1751297342948,0.96873654,107140.0,107130.0,1.31293281]
[1751297343151,0.5945256,107140.0,107130.0,1.31293281]
[1751297343349,0.96873654,107140.0,107130.0,0.01712981]
[1751297343552,0.96873654,107140.0,107130.0,0.11712981]
[1751297343757,1.32953654,107140.0,107130.0,0.8502]
[1751297344053,0.96873654,107140.0,107130.0,0.936843]
[1751297344356,0.5945256,107140.0,107130.0,0.936843]
[1751297344545,0.72873654,107140.0,107130.0,0.7502]
[1751297344744,0.186643,107130.0,107120.0,0.01694101]
[1751297345051,0.186643,107130.0,107120.0,1.68608141]
[1751297345052,0.0421,107130.0,107120.0,1.68608141]
[1751297345351,0.0466573,107140.0,107130.0,0.186643]
[1751297345352,0.2295343,107140.0,107130.0,0.186643]
[1751297345547,0.2287343,107140.0,107130.0,1.90279094]
[1751297345750,0.186643,107130.0,107120.0,0.37774101]
[1751297346050,0.60295394,107130.0,107120.0,0.37774101]
[1751297346254,0.271643,107130.0,107120.0,1.32904141]
[1751297346756,0.64585394,107130.0,107120.0,0.53078101]
[1751297347052,0.64585394,107130.0,107120.0,0.78326101]
[1751297347354,0.571643,107130.0,107120.0,1.33072141]
[1751297347749,0.371643,107130.0,107120.0,1.33132141]
[1751297348156,0.64585394,107130.0,107120.0,0.37774101]
[1751297348459,0.64585394,107130.0,107120.0,1.14630101]
[1751297348751,0.1866604,107120.0,107110.0,1.2014]
[1751297348953,0.78707134,107120.0,107110.0,2.1568379]
[1751297349264,0.4128604,107120.0,107110.0,2.1568379]
[1751297349446,0.2262,107120.0,107110.0,2.1568379]
[1751297350143,0.1822,107120.0,107110.0,2.1578379]
[1751297350348,0.0443,107130.0,107120.0,0.1866604]
[1751297350556,0.1669,107130.0,107120.0,0.5474604]
[1751297351057,0.2322082,107150.0,107140.0,0.1866256]
[1751297351355,0.5891082,107150.0,107140.0,1.3173856]
[1751297351554,0.96331914,107150.0,107140.0,1.3173856]
[1751297351750,0.96331914,107150.0,107140.0,1.13076]
[1751297351951,0.1866256,107140.0,107130.0,0.2799451]
[1751297352146,0.75773654,107140.0,107130.0,1.0513051]
[1751297352351,0.3835256,107140.0,107130.0,1.4121051]
[1751297353251,0.1526,107140.0,107130.0,1.4121051]
[1751297353559,0.2755082,107150.0,107140.0,0.1866256]
[1751297353753,0.4455082,107150.0,107140.0,0.5892256]
[1751297354061,0.4909082,107150.0,107140.0,0.5474256]
[1751297354854,0.3043,107150.0,107140.0,0.56459818]
[1751297355158,0.001,107150.0,107140.0,1.31060912]
[1751297355365,0.001,107150.0,107140.0,1.35360912]
[1751297355655,1.2319849,107170.0,107160.0,0.1865908]
[1751297355856,1.6266734,107170.0,107160.0,1.345265]
[1751297356454,1.35,107170.0,107160.0,3.23063594]
[1751297356756,1.0,107170.0,107160.0,3.31793594]
[1751297357649,1.0,107170.0,107160.0,2.945285]
[1751297358049,1.0,107170.0,107160.0,2.635285]
[1751297358250,1.0,107170.0,107160.0,3.015285]
[1751297358556,1.0,107170.0,107160.0,2.95465184]
[1751297358758,1.0,107170.0,107160.0,3.32886278]
[1751297358953,1.0,107170.0,107160.0,2.95465184]
[1751297359256,1.0,107170.0,107160.0,3.36970278]
[1751297359453,1.0,107170.0,107160.0,2.64549184]
[1751297359852,1.0,107170.0,107160.0,3.32970278]
[1751297360158,1.0,107170.0,107160.0,3.01970278]
[1751297360357,1.1865734,107170.0,107160.0,2.64549184]
[1751297360860,1.2317734,107170.0,107160.0,2.594725]
[1751297361062,1.2745734,107170.0,107160.0,2.594725]
[1751297361554,1.96878434,107170.0,107160.0,1.00016]
[1751297361753,2.37458434,107170.0,107160.0,1.00016]
[1751297361955,2.37458434,107170.0,107160.0,1.62472]
[1751297362350,2.37458434,107170.0,107160.0,1.00016]
[1751297362555,0.1865908,107160.0,107150.0,0.66246861]
[1751297362761,0.1866082,107150.0,107140.0,0.03726861]
[1751297362962,0.84961914,107150.0,107140.0,1.36969431]
[1751297363158,0.4754082,107150.0,107140.0,0.80054549]
[1751297363356,0.4754082,107150.0,107140.0,1.42706549]
[1751297363665,0.4754082,107150.0,107140.0,1.38979688]
[1751297363866,0.2754082,107150.0,107140.0,1.43535688]
[1751297364863,0.2754082,107150.0,107140.0,1.45404055]
[1751297365267,0.2754082,107150.0,107140.0,1.45504055]
[1751297365653,0.2754082,107150.0,107140.0,1.3803059]
[1751297365858,0.2754082,107150.0,107140.0,1.45463351]
[1751297366264,0.2754082,107150.0,107140.0,1.3803059]
[1751297366560,0.2754082,107150.0,107140.0,1.45466878]
[1751297367461,0.1866068,107160.0,107150.0,0.1866086]
[1751297367663,0.1866068,107160.0,107150.0,0.30325754]
[1751297367859,0.1866068,107160.0,107150.0,0.5897086]
[1751297368064,0.1866068,107160.0,107150.0,0.6301086]
[1751297368265,1.4064807,107170.0,107160.0,0.1865912]
[1751297368461,1.5964807,107170.0,107160.0,1.07772326]
[1751297369062,1.97069164,107170.0,107160.0,1.21476641]
[1751297369264,2.33149164,107170.0,107160.0,0.29043597]
[1751297369468,1.97069164,107170.0,107160.0,1.43863597]
[1751297369964,1.92404544,107170.0,107160.0,1.42769804]
[1751297370156,1.87739974,107170.0,107160.0,1.39053968]
[1751297370360,1.87739974,107170.0,107160.0,1.06689749]
[1751297370561,1.87739974,107170.0,107160.0,1.01114901]
[1751297370864,1.69081094,107170.0,107160.0,1.01114901]
[1751297371061,1.3166,107170.0,107160.0,1.01114901]
[1751297371263,1.3166,107170.0,107160.0,1.46819749]
[1751297371471,1.5031738,107170.0,107160.0,1.43103968]
[1751297371773,1.19,107170.0,107160.0,1.81616747]
[1751297372062,1.19,107170.0,107160.0,1.50137749]
[1751297372269,1.19,107170.0,107160.0,1.54357749]
[1751297373364,1.19,107170.0,107160.0,1.89913299]
[1751297374264,1.19,107170.0,107160.0,1.56205078]
[1751297374580,1.19,107170.0,107160.0,1.93626172]
[1751297374874,1.19,107170.0,107160.0,1.95298689]
[1751297375668,1.0,107170.0,107160.0,1.91585816]
[1751297375971,1.0,107170.0,107160.0,1.9345136]
[1751297376372,1.0,107170.0,107160.0,1.1471136]
[1751297376573,1.0,107170.0,107160.0,1.9349136]
[1751297376976,0.15964,107170.0,107160.0,2.21056466]
[1751297377173,0.15964,107170.0,107160.0,2.2849136]
[1751297377571,0.14330735,107170.0,107160.0,2.2849136]
[1751297377971,0.14330735,107170.0,107160.0,2.21056466]
[1751297378172,0.14330735,107170.0,107160.0,1.83635372]
[1751297378478,0.14330735,107170.0,107160.0,2.21056466]
[1751297378674,0.14330735,107170.0,107160.0,2.39719666]
[1751297379179,0.14330735,107170.0,107160.0,2.02298572]
[1751297379381,0.14330735,107170.0,107160.0,2.39719666]
[1751297379779,0.14330735,107170.0,107160.0,2.471466]
[1751297379978,0.14330735,107170.0,107160.0,2.39719666]
[1751297380280,0.14330735,107170.0,107160.0,1.12282306]
[1751297380474,0.14330735,107170.0,107160.0,2.287154]
[1751297380880,0.14330735,107170.0,107160.0,1.91294306]
[1751297381181,0.14330735,107170.0,107160.0,2.286954]
[1751297381381,0.14330735,107170.0,107160.0,1.87270306]
[1751297381676,0.14330735,107170.0,107160.0,2.246914]
[1751297381974,0.14330735,107170.0,107160.0,2.246994]
[1751297382367,0.14330735,107170.0,107160.0,1.87278306]
[1751297382582,0.14330735,107170.0,107160.0,2.266994]
[1751297382774,0.14330735,107170.0,107160.0,1.936994]
[1751297383078,0.14330735,107170.0,107160.0,2.276994]
[1751297383271,0.51751829,107170.0,107160.0,0.64932306]
[1751297383468,0.14330735,107170.0,107160.0,1.42063616]
[1751297383777,0.37218115,107170.0,107160.0,1.42063616]
[1751297383976,0.18560735,107170.0,107160.0,1.42111616]
[1751297384177,0.18560735,107170.0,107160.0,1.46281616]
[1751297384379,0.14330735,107170.0,107160.0,1.8370271]
[1751297384574,0.14330735,107170.0,107160.0,2.2098271]
[1751297384877,0.14330735,107170.0,107160.0,1.55039666]
[1751297385074,0.14330735,107170.0,107160.0,2.34151666]
[1751297385875,0.14330735,107170.0,107160.0,2.15488212]
[1751297386374,0.02515765,107170.0,107160.0,2.34151412]
[1751297386577,5e-08,107170.0,107160.0,2.34151412]
[1751297386973,5e-08,107170.0,107160.0,2.44151412]
[1751297387272,0.001,107180.0,107170.0,0.1865738]
[1751297387273,5e-08,107180.0,107170.0,0.1865738]
[1751297387475,5e-08,107180.0,107170.0,1.40491955]
[1751297387668,5e-08,107180.0,107170.0,1.84152755]
[1751297387867,0.00632041,107210.0,107200.0,0.1865216]
[1751297388069,0.00632041,107210.0,107200.0,3.00987254]
[1751297388281,0.00632041,107210.0,107200.0,3.43397254]
[1751297388476,0.00632041,107210.0,107200.0,2.6797616]
[1751297388678,0.00632041,107210.0,107200.0,3.0097616]
[1751297388980,0.00632041,107210.0,107200.0,3.38397254]
[1751297389376,0.00632041,107210.0,107200.0,3.0097616]
[1751297389579,0.00632041,107210.0,107200.0,3.39348087]
[1751297391472,0.00632041,107210.0,107200.0,3.76769181]
[1751297391679,0.00832041,107210.0,107200.0,3.58004087]
[1751297392575,0.00832041,107210.0,107200.0,3.02366993]
[1751297392771,0.00832041,107210.0,107200.0,3.39788087]
[1751297392972,0.001,107240.0,107230.0,0.20308118]
[1751297393174,0.00049694,107240.0,107230.0,1.7733673]
[1751297393376,0.00049694,107240.0,107230.0,1.8156673]
[1751297393774,0.07479194,107240.0,107230.0,1.88990324]
[1751297393983,0.18694894,107240.0,107230.0,1.85042324]
[1751297394287,0.30104894,107240.0,107230.0,0.98133187]
[1751297394484,0.34474894,107240.0,107230.0,1.80860324]
[1751297394682,0.34474894,107240.0,107230.0,1.80856324]
[1751297394885,0.34474894,107240.0,107230.0,0.99992324]
[1751297395082,0.34474894,107240.0,107230.0,1.7341673]
[1751297395083,0.1868,107240.0,107230.0,1.7341673]
[1751297395287,0.1868,107240.0,107230.0,2.10837824]
[1751297395584,0.1868,107240.0,107230.0,1.7341673]
[1751297395787,0.1868,107240.0,107230.0,1.78977514]
[1751297397186,0.1868,107240.0,107230.0,1.82681931]
[1751297397490,0.1268,107240.0,107230.0,1.82681931]
[1751297397683,0.313252,107240.0,107230.0,1.82681931]
[1751297397890,0.1268,107240.0,107230.0,1.77121147]
[1751297398187,0.313252,107240.0,107230.0,1.77121147]
[1751297398395,0.68746294,107240.0,107230.0,1.41045147]
[1751297398884,0.68746294,107240.0,107230.0,1.41057147]
[1751297398885,0.353252,107240.0,107230.0,1.41057147]
[1751297399081,0.353252,107240.0,107230.0,1.43834912]
[1751297399279,0.353252,107240.0,107230.0,1.43830912]
[1751297399482,0.72746294,107240.0,107230.0,0.62970912]
[1751297399677,0.72746294,107240.0,107230.0,0.23186495]
[1751297399892,1.40826294,107240.0,107230.0,1.04018495]
[1751297400092,1.034052,107240.0,107230.0,0.23186495]
[1751297400386,1.84476694,107240.0,107230.0,0.2040873]
[1751297400586,1.84476694,107240.0,107230.0,1.0122073]
[1751297400792,1.470556,107240.0,107230.0,1.0122073]
[1751297401089,1.48396694,107240.0,107230.0,0.00100612]
[1751297401392,1.84476694,107240.0,107230.0,0.85861317]
[1751297401580,1.90826294,107240.0,107230.0,0.83083552]
[1751297401782,1.534052,107240.0,107230.0,0.83083552]
[1751297401978,2.34476694,107240.0,107230.0,0.00100612]
[1751297402391,2.34476694,107240.0,107230.0,0.64568612]
[1751297402682,2.34476694,107240.0,107230.0,0.00100612]
[1751297402891,2.34476694,107240.0,107230.0,0.64592612]
[1751297403293,1.970556,107240.0,107230.0,0.83239552]
[1751297403493,2.34476694,107240.0,107230.0,0.83239552]
[1751297404183,1.98396694,107240.0,107230.0,0.83239552]
[1751297404382,1.173252,107240.0,107230.0,0.83239552]
[1751297404793,1.54746294,107240.0,107230.0,0.83239552]
[1751297405182,0.673252,107240.0,107230.0,0.86017317]
[1751297405385,1.04746294,107240.0,107230.0,0.86017317]
[1751297405695,0.673252,107240.0,107230.0,0.86017317]
[1751297406190,1.04746294,107240.0,107230.0,0.86017317]
[1751297406690,1.40826294,107240.0,107230.0,0.67370377]
[1751297406883,1.40826294,107240.0,107230.0,0.00100612]
[1751297407088,1.84476694,107240.0,107230.0,0.00100612]
[1751297407388,0.1864694,107230.0,107220.0,0.3590468]
[1751297407589,0.6277694,107230.0,107220.0,1.0059668]
[1751297407789,0.0813,107230.0,107220.0,1.39518445]
[1751297407986,0.2613,107230.0,107220.0,1.39518445]
[1751297408588,0.2209,107230.0,107220.0,1.83426975]
[1751297408790,0.18,107230.0,107220.0,1.50841464]
[1751297408996,0.18,107230.0,107220.0,1.54547263]
[1751297409183,0.18,107230.0,107220.0,1.50841464]
[1751297409384,0.4084005,107270.0,107250.0,0.1864345]
[1751297409592,0.1293,107260.0,107250.0,0.5938417]
[1751297409796,0.4356,107260.0,107250.0,1.479374]
[1751297409985,0.4356,107260.0,107250.0,1.49478016]
[1751297410190,0.4356,107260.0,107250.0,1.59895939]
[1751297410491,0.35,107260.0,107250.0,2.41069029]
[1751297410793,0.35,107260.0,107250.0,1.68621813]
[1751297410999,0.001,107270.0,107260.0,0.1864171]
[1751297411190,0.311,107270.0,107260.0,1.11209048]
[1751297411386,0.311,107270.0,107260.0,1.05652014]
[1751297411599,0.311,107270.0,107260.0,1.40652014]
[1751297411798,0.001,107270.0,107260.0,1.06028546]
[1751297412105,0.001,107270.0,107260.0,1.37892606]
[1751297412299,0.001,107270.0,107260.0,1.08445726]
[1751297413306,0.001,107270.0,107260.0,0.71024632]
[1751297413611,0.001,107270.0,107260.0,1.90881726]
[1751297414001,0.0052613,107280.0,107270.0,0.1864002]
[1751297414206,0.006,107300.0,107290.0,0.1863654]
[1751297414410,0.006,107300.0,107290.0,2.33147538]
[1751297414606,0.006,107300.0,107290.0,2.26669756]
[1751297414807,0.006,107300.0,107290.0,2.32538566]
[1751297415116,0.006,107300.0,107290.0,2.66538566]
[1751297415816,0.006,107300.0,107290.0,2.39538566]
[1751297416118,0.006,107300.0,107290.0,2.21238972]
[1751297416313,0.006,107300.0,107290.0,1.84469878]
[1751297416519,0.1923481,107300.0,107290.0,1.91088647]
[1751297416715,0.1923481,107300.0,107290.0,1.06716647]
[1751297416917,0.1923481,107300.0,107290.0,1.10414654]
[1751297417113,0.1923481,107300.0,107290.0,1.93858654]
[1751297417419,0.2360481,107300.0,107290.0,1.88315885]
[1751297417619,0.006,107300.0,107290.0,2.56736979]
[1751297417812,0.006,107300.0,107290.0,1.75137741]
[1751297418017,0.006,107300.0,107290.0,2.71734972]
[1751297418216,0.0447,107330.0,107320.0,0.1863134]
[1751297418420,0.567296,107330.0,107320.0,1.3822734]
[1751297418621,0.381,107330.0,107320.0,1.4704734]
[1751297419018,0.381,107330.0,107320.0,1.84468434]
[1751297419218,0.567296,107330.0,107320.0,1.84468434]
[1751297419524,0.92150694,107330.0,107320.0,1.3822734]
[1751297419713,0.1863134,107320.0,107310.0,1.3863707]
[1751297419916,0.5481134,107320.0,107310.0,1.6748]
[1751297420124,0.1863307,107310.0,107300.0,0.44931513]
[1751297420315,0.5904307,107310.0,107300.0,0.92395513]
[1751297420515,0.5904307,107310.0,107300.0,0.27486323]
[1751297420714,0.5904307,107310.0,107300.0,1.08311493]
[1751297420915,0.5904307,107310.0,107300.0,0.24715493]
[1751297421117,0.5904307,107310.0,107300.0,1.08307493]
[1751297421516,0.5904307,107310.0,107300.0,0.89672683]
[1751297421718,0.5904307,107310.0,107300.0,0.06080683]
[1751297421922,0.1863219,107320.0,107310.0,0.1863307]
[1751297422120,0.5463134,107320.0,107310.0,0.77960034]
[1751297422323,0.001,107330.0,107320.0,0.1863133]
[1751297422527,0.001,107330.0,107320.0,1.84246424]
[1751297422827,0.1863133,107320.0,107310.0,0.7553659]
[1751297423022,0.5691133,107320.0,107310.0,1.2313259]
[1751297423335,1.30412424,107320.0,107310.0,0.2140391]
[1751297423621,0.1863308,107310.0,107300.0,0.3930564]
[1751297423826,0.6294308,107310.0,107300.0,1.0536564]
[1751297424017,0.6294308,107310.0,107300.0,1.4158164]
[1751297424324,0.6294308,107310.0,107300.0,0.5471481]
[1751297424527,1.00364174,107310.0,107300.0,1.0272281]
[1751297424728,0.1863481,107300.0,107290.0,0.68308088]
[1751297425025,0.3260999,107310.0,107300.0,0.1863481]
[1751297425227,0.3260999,107310.0,107300.0,0.2310481]
[1751297425422,0.6660999,107310.0,107300.0,0.2728481]
[1751297425628,0.1863481,107300.0,107290.0,1.16150188]
[1751297425924,0.8671481,107300.0,107290.0,0.31849348]
[1751297426114,0.2300481,107300.0,107290.0,1.11757348]
[1751297426320,1.31443933,107300.0,107290.0,0.22364168]
[1751297426520,1.35793933,107300.0,107290.0,1.04565888]
[1751297426823,0.6978481,107300.0,107290.0,1.04565888]
[1751297427025,0.6978481,107300.0,107290.0,0.20329888]
[1751297427226,0.6978481,107300.0,107290.0,1.40621888]
[1751297427527,0.5663481,107300.0,107290.0,1.44811888]
[1751297427720,0.5663481,107300.0,107290.0,1.12951888]
[1751297427916,0.5663481,107300.0,107290.0,1.08731888]
[1751297428126,0.6100481,107300.0,107290.0,1.04541888]
[1751297428328,0.6100481,107300.0,107290.0,0.85905338]
[1751297428329,0.6967481,107300.0,107290.0,0.85905338]
[1751297428527,0.1863659,107290.0,107280.0,1.5956042]
[1751297428827,0.5500659,107290.0,107280.0,2.4368842]
[1751297429028,0.5500659,107290.0,107280.0,2.45363579]
[1751297429223,0.1863659,107290.0,107280.0,1.70305139]
[1751297429424,0.1863659,107290.0,107280.0,2.24790411]
[1751297429730,0.3698309,107300.0,107290.0,0.1863659]
[1751297430030,1.0606309,107300.0,107290.0,0.2294659]
[1751297430228,1.0606309,107300.0,107290.0,0.25711652]
[1751297430427,0.1863658,107290.0,107280.0,1.20710251]
[1751297430626,0.81565703,107290.0,107280.0,0.02765062]
[1751297430927,0.1863832,107280.0,107270.0,0.25137343]
[1751297431130,1.30367443,107280.0,107270.0,0.87610902]
[1751297431430,1.30367443,107280.0,107270.0,0.87607122]
[1751297431629,1.30367443,107280.0,107270.0,0.8484206]
[1751297431833,1.0043832,107280.0,107270.0,0.87607122]
[1751297432033,1.0043832,107280.0,107270.0,0.87563122]
[1751297432335,0.9608832,107280.0,107270.0,0.87563122]
[1751297432532,0.16,107280.0,107270.0,0.91672302]
[1751297432830,0.16,107280.0,107270.0,1.54326803]
[1751297433031,0.16,107280.0,107270.0,1.51561741]
[1751297433333,0.1863668,107290.0,107280.0,0.3261452]
[1751297433527,0.1863668,107290.0,107280.0,1.01827676]
[1751297433528,0.16,107290.0,107280.0,1.01827676]
[1751297433837,0.3463658,107290.0,107280.0,0.98134444]
[1751297434237,0.5063658,107290.0,107280.0,0.93474994]
[1751297434429,0.5505658,107290.0,107280.0,0.89084994]
[1751297434630,0.5939658,107290.0,107280.0,0.53004994]
[1751297434937,0.5505658,107290.0,107280.0,0.53004994]
[1751297435436,0.5926658,107290.0,107280.0,0.53004994]
[1751297436032,0.5505658,107290.0,107280.0,0.89084994]
[1751297436231,0.5505658,107290.0,107280.0,0.97158226]
[1751297436431,0.7731304,107300.0,107290.0,0.1863658]
[1751297436632,1.1540304,107300.0,107290.0,0.8451258]
[1751297437337,1.45332163,107300.0,107290.0,0.87282504]
[1751297437730,1.1540304,107300.0,107290.0,0.65876]
[1751297437930,1.45332163,107300.0,107290.0,0.8451258]
[1751297438133,1.45332163,107300.0,107290.0,0.02769924]
[1751297438334,1.45332163,107300.0,107290.0,0.87278504]
[1751297439134,1.45332163,107300.0,107290.0,0.72335156]
[1751297439526,1.95332163,107300.0,107290.0,0.72335156]
[1751297439730,1.6540304,107300.0,107290.0,0.90971736]
[1751297440031,1.95332163,107300.0,107290.0,0.25099736]
[1751297440238,1.95332163,107300.0,107290.0,0.8448458]
[1751297440430,1.95332163,107300.0,107290.0,0.87254504]
[1751297441233,1.95332163,107300.0,107290.0,0.8448458]
[1751297441427,1.95332163,107300.0,107290.0,0.65848]
[1751297441834,0.1863658,107290.0,107280.0,0.32327106]
[1751297442038,0.87715703,107290.0,107280.0,0.95357182]
[1751297442239,0.6194658,107290.0,107280.0,0.95357182]
[1751297442441,0.0831,107290.0,107280.0,1.31437182]
[1751297442733,0.1272,107300.0,107290.0,0.1863658]
[1751297442940,0.4656,107300.0,107290.0,0.8187084]
[1751297443137,0.4215,107300.0,107290.0,0.9025084]
[1751297443333,0.6078485,107300.0,107290.0,0.9025084]
[1751297443538,0.9686485,107300.0,107290.0,0.42078241]
[1751297443732,0.6078485,107300.0,107290.0,0.27890683]
[1751297443941,1.30953973,107300.0,107290.0,1.05925022]
[1751297444134,1.30953973,107300.0,107290.0,0.74914103]
[1751297444334,1.49593973,107300.0,107290.0,0.68444605]
[1751297444735,1.49593973,107300.0,107280.0,0.31477996]
[1751297444736,0.1863658,107290.0,107280.0,0.31477996]
[1751297445044,1.31205703,107290.0,107280.0,0.91741016]
[1751297445246,1.81205703,107290.0,107280.0,0.01683969]
[1751297445439,1.99847303,107290.0,107280.0,0.04469506]
[1751297445645,1.82134486,107290.0,107280.0,0.70073506]
[1751297445943,1.81205703,107290.0,107280.0,0.70073506]
[1751297446941,0.1863832,107280.0,107270.0,0.03750442]
[1751297447136,1.29827443,107280.0,107270.0,0.65562]
[1751297447331,1.48471443,107280.0,107270.0,0.65562]
[1751297447538,1.48471443,107280.0,107270.0,0.65522]
[1751297447739,1.3724,107280.0,107270.0,0.8416206]
[1751297447936,0.9989832,107280.0,107270.0,0.8416206]
[1751297448243,0.37,107280.0,107270.0,0.68072163]
[1751297448444,0.37,107280.0,107270.0,1.55726163]
[1751297449146,0.5,107280.0,107270.0,1.89355401]
[1751297449447,0.5,107280.0,107270.0,1.52013721]
[1751297449947,0.5,107280.0,107270.0,1.89355401]
[1751297450239,0.5,107280.0,107270.0,1.84906335]
[1751297450544,0.2795512,107290.0,107280.0,0.1863832]
[1751297450735,1.002968,107290.0,107280.0,1.5999146]
[1751297450935,1.002968,107290.0,107280.0,0.3130832]
[1751297451141,1.047268,107290.0,107280.0,1.0190632]
[1751297451333,1.134768,107290.0,107280.0,1.0188632]
[1751297451537,1.495568,107290.0,107280.0,0.83248]
[1751297451945,0.1863832,107280.0,107270.0,0.2297673]
[1751297452147,1.008,107280.0,107270.0,1.03017455]
[1751297452346,1.008,107280.0,107270.0,0.6529]
[1751297452347,1.318,107280.0,107270.0,0.6529]
[1751297452851,1.318,107280.0,107270.0,0.8393006]
[1751297453240,1.318,107280.0,107270.0,0.00038]
[1751297453446,1.318,107280.0,107270.0,0.65266]
[1751297453847,1.318,107280.0,107270.0,0.00038]
[1751297454149,1.318,107280.0,107270.0,0.6521]
[1751297454343,1.818,107280.0,107270.0,0.00038]
[1751297454543,0.1864006,107270.0,107260.0,0.70647421]
[1751297454741,1.4157174,107270.0,107260.0,0.89289221]
[1751297455248,1.4157174,107270.0,107260.0,0.05495421]
[1751297455444,1.4157174,107270.0,107260.0,0.70647421]
[1751297455743,1.4157174,107270.0,107260.0,0.68896883]
[1751297455948,1.4157174,107270.0,107260.0,0.70752711]
[1751297456149,1.5157174,107270.0,107260.0,0.09376657]
[1751297456352,1.0423006,107270.0,107260.0,0.03809173]
[1751297456536,1.4157174,107270.0,107260.0,0.03809173]
[1751297456742,2.0157174,107270.0,107260.0,0.03809173]
[1751297456955,2.0157174,107270.0,107250.0,0.70647484]
[1751297456956,0.186418,107260.0,107250.0,0.70647484]
[1751297457245,0.1864354,107250.0,107240.0,0.72491594]
[1751297457442,1.4247522,107250.0,107240.0,0.07423594]
[1751297457944,1.4247522,107250.0,107240.0,0.08822476]
[1751297458145,1.4247522,107250.0,107240.0,0.08824068]
[1751297458944,1.4247522,107250.0,107240.0,0.07423594]
[1751297459249,1.4247522,107250.0,107240.0,0.08824008]
[1751297459438,1.9247522,107250.0,107240.0,0.08824008]
[1751297460045,1.9247522,107250.0,107240.0,0.01400414]
[1751297460253,2.48465701,107250.0,107240.0,0.01400414]
[1751297460439,2.58465701,107250.0,107240.0,0.01400414]
[1751297460645,0.1864527,107240.0,107230.0,0.07516847]
[1751297460949,1.3847695,107240.0,107230.0,0.07516847]
[1751297461137,1.3847695,107240.0,107230.0,0.26163857]
[1751297461336,2.8847695,107240.0,107230.0,0.83644263]
[1751297461548,2.5239695,107240.0,107230.0,0.88004263]
[1751297461746,1.3847695,107240.0,107230.0,0.88028263]
[1751297462042,1.5239695,107240.0,107230.0,0.83672263]
[1751297462240,1.1505527,107240.0,107230.0,0.83672263]
[1751297462445,1.8847695,107240.0,107230.0,0.83672263]
[1751297463151,1.5113527,107240.0,107230.0,0.18740263]
[1751297463353,1.8847695,107240.0,107230.0,0.83672263]
[1751297463553,1.8847695,107240.0,107230.0,0.87682263]
[1751297463954,1.8847695,107240.0,107230.0,0.00093253]
[1751297464147,1.8847695,107240.0,107230.0,0.83604263]
[1751297464345,1.8847695,107240.0,107230.0,0.87614263]
[1751297464850,1.1505527,107240.0,107230.0,0.22750263]
[1751297465049,1.8847695,107240.0,107230.0,0.87562263]
[1751297465353,1.8847695,107240.0,107230.0,0.87538263]
[1751297465949,1.4827695,107240.0,107230.0,0.87538263]
[1751297466150,1.4827695,107240.0,107230.0,0.87490263]
[1751297466756,0.65,107240.0,107230.0,1.23570263]
[1751297467056,0.5,107240.0,107230.0,1.39083857]
[1751297468155,0.6950616,107260.0,107250.0,0.1864354]
[1751297468350,0.37,107260.0,107250.0,0.8333554]
[1751297468558,0.286418,107260.0,107250.0,1.3210554]
[1751297468761,1.1437449,107270.0,107260.0,0.186418]
[1751297468960,1.4737449,107270.0,107260.0,0.229918]
[1751297469252,0.9830407,107270.0,107260.0,0.590718]
[1751297469559,0.7034168,107270.0,107260.0,0.630818]
[1751297469851,0.5164006,107270.0,107260.0,0.630818]
[1751297470060,0.8898174,107270.0,107260.0,0.630818]
[1751297470558,0.5164006,107270.0,107260.0,0.630818]
[1751297470746,0.5164006,107270.0,107260.0,0.810338]
[1751297470747,0.33,107270.0,107260.0,0.810338]
[1751297470952,0.3064006,107270.0,107260.0,0.810338]
[1751297471153,0.5598174,107270.0,107260.0,0.810338]
[1751297471457,0.8898174,107270.0,107260.0,0.449538]
[1751297471652,0.9296174,107270.0,107260.0,0.449538]
[1751297471859,0.9296174,107270.0,107260.0,0.409438]
[1751297472157,0.186418,107260.0,107250.0,0.33437699]
[1751297472357,1.2706348,107260.0,107250.0,0.10034759]
[1751297472655,1.3104348,107260.0,107250.0,0.05704759]
[1751297472860,1.3922348,107260.0,107250.0,0.64876]
[1751297473255,0.1864353,107250.0,107240.0,1.1508784]
[1751297473462,1.2706521,107250.0,107240.0,0.87994]
[1751297473660,1.3509521,107250.0,107240.0,1.4878]
[1751297473855,0.1864527,107240.0,107230.0,0.49702483]
[1751297474060,1.2704695,107240.0,107230.0,0.23494579]
[1751297474362,1.3109695,107240.0,107230.0,0.05542579]
[1751297474562,1.3109695,107240.0,107230.0,0.66316579]
[1751297474759,1.3546695,107240.0,107230.0,0.66316579]
[1751297474948,1.3546695,107240.0,107230.0,0.01492579]
[1751297475149,1.3546695,107240.0,107230.0,0.66316579]
[1751297475562,1.8546695,107240.0,107230.0,0.84963589]
[1751297475766,1.8546695,107240.0,107230.0,0.66316579]
[1751297476765,1.8546695,107240.0,107230.0,0.01492579]
[1751297476972,2.0411735,107240.0,107230.0,0.01492579]
[1751297477457,0.1864875,107220.0,107210.0,0.47452575]
[1751297477659,0.49749362,107220.0,107210.0,1.1351934]
[1751297477854,0.87091042,107220.0,107210.0,0.2276027]
[1751297478059,0.91231042,107220.0,107210.0,0.86294]
[1751297478259,0.91231042,107220.0,107210.0,0.17456]
[1751297478568,0.99651042,107220.0,107210.0,1.0084649]
[1751297478864,0.99651042,107220.0,107210.0,1.06409419]
[1751297479062,0.62309362,107220.0,107210.0,1.10799419]
[1751297479264,0.99651042,107220.0,107210.0,1.10799419]
[1751297479659,0.62309362,107220.0,107210.0,1.10799419]
[1751297479868,0.31100612,107220.0,107210.0,1.4130449]
[1751297480070,0.49749362,107220.0,107210.0,1.15049419]
[1751297480264,0.49749362,107220.0,107210.0,1.4555449]
[1751297481164,0.49749362,107220.0,107210.0,1.0947449]
[1751297481365,0.49749362,107220.0,107210.0,1.4555449]
[1751297481567,0.49749362,107220.0,107210.0,1.0947449]
[1751297482266,0.49749362,107220.0,107210.0,1.51129419]
[1751297482966,0.87091042,107220.0,107210.0,1.15049419]
[1751297483166,0.87091042,107220.0,107210.0,1.16418199]
[1751297483359,0.49749362,107220.0,107210.0,1.52498199]
[1751297483560,0.87091042,107220.0,107210.0,0.97767709]
[1751297483866,1.27531042,107220.0,107210.0,1.1078727]
[1751297484258,1.23171042,107220.0,107210.0,1.1078727]
[1751297484660,1.23171042,107220.0,107210.0,0.0583478]
[1751297484859,1.31651042,107220.0,107210.0,0.7044278]
[1751297485066,1.31651042,107220.0,107210.0,0.8465127]
[1751297485067,1.35711042,107220.0,107210.0,0.8465127]